bitfinex/quotes_SOLUSD_20220228
["timestamp","ask_amount","ask_price","bid_price","bid_amount"]
[1646019132134,113.7,86.998,86.887,17.32653594]
[1646019132335,1.37018643,86.997,86.881,4.6]
[1646019132534,4.6,86.996,86.86,14.05]
[1646019132933,113.7,86.995,86.862,42.87480185]
[1646019133134,113.7,86.969,86.87,17.2702]
[1646019133336,44.33952834,86.967,86.871,122.18532449]
[1646019133537,44.33952834,86.967,86.872,7.13128725]
[1646019133735,44.33952834,86.967,86.873,6.0]
[1646019133936,44.33952834,86.967,86.874,4.601]
[1646019134136,29.2988,86.992,86.891,113.7]
[1646019134337,1.61219153,87.022,86.901,113.7]
[1646019134338,4.6,87.009,86.901,113.7]
[1646019134539,2.74678921,87.001,86.904,2.7785655]
[1646019134740,2.74678921,87.001,86.907,3.00447095]
[1646019134941,24.9175,87.026,86.921,113.7]
[1646019135137,52.03691599,87.025,86.95,17.2545]
[1646019135337,52.03691599,87.025,86.951,48.87480185]
[1646019135939,52.03691599,87.025,86.952,2.76941398]
[1646019136143,52.03691599,87.025,86.953,6.0]
[1646019136741,52.03691599,87.025,86.952,6.0]
[1646019137140,2.74678921,87.024,86.952,6.0]
[1646019137943,2.74678921,87.024,86.952,8.83425574]
[1646019138140,52.03691599,87.025,86.952,8.78300315]
[1646019139542,2.74678921,87.024,86.952,6.0]
[1646019139943,2.74678921,87.024,86.951,42.87480185]
[1646019140146,116.44678921,87.024,86.951,42.87480185]
[1646019140343,122.72898848,87.024,86.951,42.87480185]
[1646019140543,2.74678921,87.023,86.951,42.87480185]
[1646019140742,2.74678921,87.023,86.952,6.0]
[1646019143047,2.74678921,87.023,86.952,8.48769988]
[1646019143346,52.03691599,87.025,86.952,8.48769988]
[1646019143545,52.03691599,87.025,86.961,2.56997876]
[1646019143746,52.03691599,87.025,86.962,6.0]
[1646019144147,2.74678921,87.037,86.962,119.7]
[1646019144348,2.74678921,87.048,86.964,113.7]
[1646019144647,46.6849,87.086,86.971,113.7]
[1646019144847,46.6849,87.086,86.981,113.7]
[1646019145047,46.6849,87.086,86.98,14.05]
[1646019145048,59.71058644,87.076,86.982,205.5153117]
[1646019145254,59.71058644,87.076,86.983,2.5896725]
[1646019145449,59.71058644,87.076,86.984,6.0]
[1646019145848,59.71058644,87.076,87.0,17.2436]
[1646019146048,59.71058644,87.076,87.001,51.95922271]
[1646019146348,59.71058644,87.076,87.002,2.29488562]
[1646019146551,59.71058644,87.076,87.003,6.0]
[1646019146948,59.71058644,87.076,87.011,2.6046921]
[1646019147149,59.71058644,87.076,87.012,6.0]
[1646019147750,59.71058644,87.076,87.005,6.0]
[1646019149153,113.7,87.075,87.005,6.0]
[1646019149455,1.64677175,87.074,87.002,6.0]
[1646019149653,4.595,87.073,86.991,2.58263652]
[1646019150355,4.595,87.073,87.002,8.84605788]
[1646019150553,77.35128644,87.076,87.002,8.84605788]
[1646019150554,4.595,87.075,87.002,8.84605788]
[1646019150757,59.71058644,87.076,87.002,8.84605788]
[1646019151157,113.7,87.075,87.002,6.0]
[1646019151556,4.595,87.074,87.002,6.0]
[1646019151856,113.7,87.075,87.002,6.0]
[1646019152157,4.595,87.074,87.002,6.0]
[1646019152556,113.7,87.073,87.002,6.0]
[1646019152761,1.79278342,87.072,87.001,6.0]
[1646019153558,1.79278342,87.072,87.002,56.93420346]
[1646019153758,1.79278342,87.072,87.003,6.0]
[1646019153961,4.595,87.075,87.003,8.41179332]
[1646019154159,59.71058644,87.076,87.01,17.2427]
[1646019154560,59.71058644,87.076,87.011,2.93119414]
[1646019155363,59.71058644,87.076,87.012,6.0]
[1646019156060,59.71058644,87.076,87.011,6.0]
[1646019157168,59.71058644,87.076,87.011,8.6666852]
[1646019159169,0.86440043,87.077,87.02,17.2407]
[1646019159369,0.36440043,87.077,87.021,2.73650361]
[1646019159768,0.36440043,87.077,87.022,6.0]
[1646019160170,0.36440043,87.077,87.023,22.63164877]
[1646019160369,0.36440043,87.077,87.024,8.9305177]
[1646019160969,0.36440043,87.077,87.03,17.2384]
[1646019161175,0.36440043,87.077,87.031,2.33744658]
[1646019161371,0.36440043,87.077,87.032,6.0]
[1646019161671,0.36440043,87.077,87.032,8.74678921]
[1646019162070,0.36440043,87.077,87.04,17.2359]
[1646019162271,0.36440043,87.077,87.041,48.94589362]
[1646019162471,0.36440043,87.077,87.042,8.91695492]
[1646019162672,0.36440043,87.077,87.042,2.91695492]
[1646019164688,0.36440043,87.077,87.043,6.0]
[1646019164887,0.36440043,87.077,87.042,2.91695492]
[1646019165486,0.36440043,87.077,87.041,46.52187866]
[1646019165889,0.36440043,87.077,87.042,6.0]
[1646019167189,0.36440043,87.077,87.041,46.52187866]
[1646019167389,0.36440043,87.077,87.042,2.34403872]
[1646019168292,0.36440043,87.077,87.041,46.52187866]
[1646019168490,0.36440043,87.077,87.042,6.0]
[1646019168690,0.36440043,87.077,87.021,2.74827322]
[1646019169290,0.36440043,87.077,87.014,2.66169006]
[1646019169490,17.37260043,87.077,87.014,2.66169006]
[1646019169692,7.73743623,87.076,87.015,54.1896631]
[1646019169891,7.73743623,87.076,87.016,2.65553382]
[1646019170093,113.7,87.075,86.987,46.5646]
[1646019170291,16.18743623,87.076,86.988,2.50465862]
[1646019170493,7.73743623,87.076,86.988,2.50465862]
[1646019170894,4.596,87.075,86.989,52.14288614]
[1646019171092,4.596,87.075,86.99,3.04104899]
[1646019171491,4.596,87.075,86.99,20.28744899]
[1646019171693,4.596,87.075,86.991,2.40843602]
[1646019172092,6.3011065,87.075,86.99,17.2464]
[1646019172293,113.7,87.074,86.991,6.0]
[1646019172494,1.57133277,87.073,86.991,6.0]
[1646019172694,12.33243623,87.076,86.991,6.0]
[1646019172695,4.596,87.072,86.991,8.38138351]
[1646019172894,4.596,87.075,86.991,8.38138351]
[1646019175103,118.296,87.075,86.991,8.38138351]
[1646019175301,1.56692422,87.074,86.991,6.0]
[1646019175900,4.595,87.073,86.991,6.0]
[1646019176301,4.596,87.075,86.991,8.52379299]
[1646019177401,7.73743623,87.076,86.991,8.52379299]
[1646019177800,4.595,87.075,86.991,8.52379299]
[1646019179106,118.295,87.075,86.991,8.52379299]
[1646019179305,4.595,87.075,86.991,8.52379299]
[1646019180106,7.73743623,87.076,87.001,2.34850208]
[1646019182307,7.73743623,87.076,87.01,17.2427]
[1646019182507,7.73743623,87.076,87.011,27.42296609]
[1646019182908,7.73743623,87.076,87.012,2.8640757]
[1646019184914,7.73743623,87.076,87.011,27.42296609]
[1646019191943,17.37260043,87.077,87.011,27.42296609]
[1646019192144,0.36440043,87.077,87.012,2.93332271]
[1646019192345,0.36440043,87.077,87.02,17.2405]
[1646019192644,0.36440043,87.077,87.021,2.59056062]
[1646019192845,0.36440043,87.077,87.022,6.0]
[1646019193446,0.36440043,87.077,87.03,17.2386]
[1646019193745,0.36440043,87.077,87.031,48.19422169]
[1646019193945,0.36440043,87.077,87.032,2.96055502]
[1646019194649,0.36440043,87.077,87.031,45.89995937]
[1646019195249,0.36440043,87.077,87.04,17.2367]
[1646019195447,0.36440043,87.077,87.041,2.3529693]
[1646019196848,1.58160544,87.15,87.05,17.2347]
[1646019197049,46.5536,87.159,87.051,2.8872475]
[1646019197348,4.593,87.143,87.051,2.8872475]
[1646019197747,51.81515112,87.116,87.052,33.30149243]
[1646019197949,51.81515112,87.116,87.053,2.4453953]
[1646019198753,4.593,87.143,87.053,2.4453953]
[1646019198949,4.593,87.143,87.052,33.30149243]
[1646019198950,4.593,87.143,87.061,2.44914928]
[1646019199752,58.21774569,87.123,87.061,2.44914928]
[1646019200158,24.7626,87.122,87.061,2.44914928]
[1646019200554,8.93080251,87.109,87.061,2.44914928]
[1646019201061,24.7626,87.122,87.061,2.44914928]
[1646019201557,113.7,87.121,87.052,33.30149243]
[1646019201756,24.7417,87.101,87.052,33.30149243]
[1646019202158,43.14701115,87.1,87.052,33.30149243]
[1646019202960,24.7417,87.101,87.053,2.87209311]
[1646019202961,17.2517,87.101,87.053,2.87209311]
[1646019203756,17.2517,87.101,87.054,6.0]
[1646019204559,17.2517,87.101,87.061,2.96149172]
[1646019205559,17.2517,87.101,87.062,6.0]
[1646019206562,17.2517,87.101,87.07,17.2306]
[1646019206864,28.7864,87.158,87.071,46.0]
[1646019207070,24.1934,87.158,87.072,116.4788237]
[1646019207262,24.1934,87.158,87.074,2.58453836]
[1646019207461,46.05580257,87.166,87.077,113.7]
[1646019207662,46.05580257,87.166,87.091,33.30149243]
[1646019207862,46.05580257,87.166,87.092,8.89826644]
[1646019208162,46.05580257,87.166,87.101,2.26892915]
[1646019209768,46.05580257,87.166,87.102,6.0]
[1646019209966,38.34444563,87.152,87.102,6.0]
[1646019213167,51.0302,87.187,87.11,17.2227]
[1646019213369,46.4392,87.187,87.111,2.9912918]
[1646019213766,46.4392,87.187,87.112,6.0]
[1646019214166,45.65309986,87.169,87.114,2.98771386]
[1646019214765,45.65309986,87.169,87.115,6.0]
[1646019214967,38.74714834,87.153,87.115,6.0]
[1646019215767,46.4392,87.187,87.115,6.0]
[1646019216377,46.4392,87.187,87.12,17.2205]
[1646019216577,46.4392,87.187,87.121,2.55929039]
[1646019216876,1.82754472,87.209,87.121,2.55929039]
[1646019217080,70.2628,87.216,87.122,6.0]
[1646019218078,87.3536,87.216,87.13,17.218]
[1646019218279,4.588,87.229,87.132,113.7]
[1646019218479,4.588,87.23,87.133,3.02084498]
[1646019218680,4.588,87.23,87.134,6.0]
[1646019218880,43.47596851,87.229,87.135,31.86525493]
[1646019219079,43.47596851,87.229,87.14,14.05]
[1646019219281,4.587,87.246,87.151,113.7]
[1646019219480,24.89414277,87.251,87.161,113.7]
[1646019219682,4.586,87.272,87.17,14.05]
[1646019219878,4.586,87.272,87.171,54.6715]
[1646019220080,6.22267645,87.272,87.172,2.59108904]
[1646019220279,55.9855177,87.271,87.173,34.64825937]
[1646019220479,4.585,87.27,87.19,17.2064]
[1646019220679,113.2,87.269,87.191,31.86525493]
[1646019220878,113.2,87.267,87.173,6.0]
[1646019221079,6.3781717,87.266,87.172,6.0]
[1646019221284,6.3781717,87.266,87.172,3.08226289]
[1646019222079,6.3781717,87.266,87.173,50.132958]
[1646019222281,6.3781717,87.266,87.174,2.90338535]
[1646019222481,6.3781717,87.266,87.18,17.209]
[1646019222779,6.3781717,87.266,87.181,2.28776989]
[1646019223592,4.586,87.266,87.191,13.09074545]
[1646019223795,4.585,87.267,87.191,13.09074545]
[1646019225892,1.07207268,87.269,87.191,13.09074545]
[1646019227093,1.07207268,87.269,87.2,17.205]
[1646019227295,1.07207268,87.269,87.201,2.77757192]
[1646019227795,1.07207268,87.269,87.202,6.0]
[1646019228594,1.07207268,87.269,87.211,52.90889131]
[1646019228794,1.07207268,87.269,87.212,3.02934182]
[1646019229195,1.07207268,87.269,87.21,17.2028]
[1646019229593,55.9855177,87.271,87.21,17.2028]
[1646019229594,57.05672528,87.271,87.21,17.2028]
[1646019230197,81.87798139,87.271,87.211,6.0]
[1646019230395,81.87798139,87.271,87.202,6.0]
[1646019230594,4.27762149,87.27,87.202,6.0]
[1646019230795,4.27762149,87.27,87.198,6.0]
[1646019230994,2.74678921,87.269,87.198,8.980361]
[1646019231396,57.05672528,87.271,87.198,8.980361]
[1646019232596,57.05672528,87.271,87.2,17.2051]
[1646019232799,57.05672528,87.271,87.201,2.51876826]
[1646019233798,57.05672528,87.271,87.202,6.0]
[1646019233998,135.05344164,87.27,87.19,4.585]
[1646019234198,113.7,87.268,87.161,2.97370701]
[1646019234398,19.95638921,87.27,87.13,56.4616]
[1646019234399,113.7,87.266,87.143,48.33531385]
[1646019234600,113.7,87.244,87.143,47.84762011]
[1646019234897,113.7,87.244,87.144,45.2181073]
[1646019234898,113.7,87.242,87.144,45.2181073]
[1646019235097,113.7,87.24,87.144,45.2181073]
[1646019235300,113.7,87.238,87.115,2.53652589]
[1646019235496,14.05,87.24,87.115,2.53652589]
[1646019235497,113.7,87.236,87.116,23.1897]
[1646019235699,113.7,87.229,87.117,2.85810108]
[1646019235898,113.7,87.219,87.117,2.85810108]
[1646019236098,113.7,87.217,87.116,23.1897]
[1646019236298,6.26734378,87.216,87.118,54.47090848]
[1646019236500,1.67934378,87.216,87.119,2.47661508]
[1646019236700,49.76578647,87.216,87.119,2.47661508]
[1646019236900,35.30191405,87.215,87.119,2.47661508]
[1646019237100,32.09977635,87.215,87.119,2.47661508]
[1646019237301,150.38777635,87.214,87.119,2.47661508]
[1646019237500,17.2243,87.2,87.118,54.47090848]
[1646019237700,37.99323176,87.198,87.118,54.47090848]
[1646019238002,6.31685534,87.197,87.118,54.47090848]
[1646019238199,9.06364455,87.197,87.118,54.47090848]
[1646019238603,116.44678921,87.196,87.116,23.1897]
[1646019238801,113.7,87.189,87.116,23.1897]
[1646019239000,6.07242737,87.188,87.116,23.1897]
[1646019239401,8.81921658,87.188,87.116,23.1897]
[1646019239609,2.74678921,87.187,87.116,23.1897]
[1646019239811,4.589,87.186,87.116,23.1897]
[1646019240210,2.74678921,87.185,87.116,23.1897]
[1646019240411,4.589,87.184,87.116,23.1897]
[1646019240810,2.74678921,87.183,87.116,23.1897]
[1646019241009,4.589,87.182,87.116,23.1897]
[1646019241411,50.59004315,87.181,87.117,58.18360852]
[1646019241813,2.74678921,87.18,87.117,58.18360852]
[1646019242213,2.74678921,87.18,87.1,17.2245]
[1646019242413,4.45882005,87.18,87.1,17.2245]
[1646019242913,116.44678921,87.179,87.098,23.0428]
[1646019243115,116.44678921,87.179,87.082,29.71773079]
[1646019243116,113.7,87.177,87.083,2.55488002]
[1646019243314,113.7,87.175,87.084,43.2368705]
[1646019243513,0.86750946,87.127,87.085,2.37081431]
[1646019245917,0.86750946,87.127,87.09,17.2267]
[1646019246115,0.86750946,87.127,87.091,2.64623208]
[1646019246516,0.86750946,87.127,87.092,10.591]
[1646019246915,45.36920903,87.165,87.092,10.591]
[1646019247117,17.5124,87.197,87.092,10.591]
[1646019247318,17.5124,87.197,87.101,113.7]
[1646019247517,17.5124,87.197,87.102,8.67616722]
[1646019247717,17.5124,87.197,87.104,2.47902208]
[1646019247916,17.5124,87.197,87.105,10.589]
[1646019248116,51.07008012,87.196,87.11,14.05]
[1646019248319,51.07008012,87.196,87.111,13.35064744]
[1646019248518,51.07008012,87.196,87.13,17.2179]
[1646019248718,51.07008012,87.196,87.131,43.2368705]
[1646019249520,113.7,87.195,87.13,17.2179]
[1646019249746,4.589,87.194,87.102,2.37352188]
[1646019249926,1.43095038,87.192,87.084,50.32863282]
[1646019250128,1.36752482,87.188,87.084,50.32863282]
[1646019250328,4.59,87.187,87.084,50.32863282]
[1646019250528,113.7,87.186,87.085,52.62325298]
[1646019250729,113.7,87.169,87.085,52.62325298]
[1646019250932,34.76640558,87.168,87.085,52.62325298]
[1646019251228,37.51319479,87.168,87.085,52.62325298]
[1646019251429,41.59640558,87.168,87.085,52.62325298]
[1646019252128,41.59640558,87.168,87.086,2.71230612]
[1646019252529,4.59,87.167,87.086,2.71230612]
[1646019253634,118.29,87.167,87.086,2.71230612]
[1646019254031,4.59,87.167,87.086,2.71230612]
[1646019254436,34.76640558,87.168,87.086,2.71230612]
[1646019254831,113.7,87.167,87.086,2.71230612]
[1646019255632,0.86750946,87.127,87.086,2.71230612]
[1646019255833,51.07008012,87.126,87.086,2.71230612]
[1646019258149,51.07008012,87.126,87.085,49.54116422]
[1646019261557,51.07008012,87.126,87.062,47.3506]
[1646019262353,2.74678921,87.125,87.062,47.3506]
[1646019262554,2.74678921,87.125,87.063,57.58496067]
[1646019262753,51.07008012,87.126,87.063,57.58496067]
[1646019263554,2.74678921,87.125,87.063,57.58496067]
[1646019264162,51.07008012,87.126,87.063,57.58496067]
[1646019267862,113.7,87.125,87.063,57.58496067]
[1646019268260,116.44678921,87.125,87.063,57.58496067]
[1646019269262,2.74678921,87.125,87.063,57.58496067]
[1646019269461,51.07008012,87.126,87.063,57.58496067]
[1646019269662,51.07008012,87.126,87.064,2.76293111]
[1646019270463,51.07008012,87.126,87.064,5.50972032]
[1646019270864,51.07008012,87.126,87.064,2.76293111]
[1646019271164,51.07008012,87.126,87.063,57.58496067]
[1646019271363,0.86750946,87.072,87.063,57.58496067]
[1646019271567,51.07008012,87.126,87.064,3.03219997]
[1646019274070,51.07008012,87.126,87.064,5.99081553]
[1646019274468,51.07008012,87.126,87.064,3.03219997]
[1646019275268,51.07008012,87.126,87.064,6.11966208]
[1646019275472,17.5579,87.146,87.07,17.2307]
[1646019275674,2.74678921,87.148,87.071,2.91495479]
[1646019275870,4.591,87.165,87.072,10.591]
[1646019276472,43.59396804,87.147,87.072,10.591]
[1646019276674,43.59396804,87.147,87.072,13.53300321]
[1646019277373,43.59396804,87.147,87.072,8.94200321]
[1646019277574,43.59396804,87.147,87.09,17.2268]
[1646019277773,43.59396804,87.147,87.091,4.83496057]
[1646019277974,61.10476804,87.147,87.091,4.83496057]
[1646019278776,17.5108,87.147,87.091,4.83496057]
[1646019280781,17.5108,87.147,87.091,2.06104417]
[1646019282384,17.5108,87.147,87.091,4.50530159]
[1646019282583,4.591,87.165,87.091,4.50530159]
[1646019282784,4.591,87.165,87.1,17.2247]
[1646019282984,24.4555,87.168,87.101,2.93366842]
[1646019283605,53.45127139,87.167,87.101,2.93366842]
[1646019290512,53.45127139,87.167,87.1,17.2247]
[1646019290713,113.7,87.166,87.1,17.2247]
[1646019290911,53.45127139,87.167,87.1,17.2247]
[1646019291718,53.45127139,87.167,87.091,26.64674417]
[1646019291915,4.59,87.166,87.092,2.60748462]
[1646019292117,58.04127139,87.167,87.092,2.60748462]
[1646019292717,53.45127139,87.167,87.092,2.60748462]
[1646019293618,53.45127139,87.167,87.091,26.64674417]
[1646019294119,118.29,87.166,87.091,24.5857]
[1646019296622,142.82440492,87.166,87.091,24.5857]
[1646019296823,17.2309,87.16,87.081,2.40342334]
[1646019297024,118.291,87.159,87.081,2.40342334]
[1646019297831,118.291,87.159,87.083,51.90056136]
[1646019298925,4.591,87.159,87.083,51.90056136]
[1646019299128,4.591,87.159,87.084,2.64971708]
[1646019299327,17.2309,87.16,87.086,2.28113058]
[1646019300137,4.591,87.166,87.086,2.28113058]
[1646019300335,118.291,87.166,87.086,2.28113058]
[1646019301435,4.591,87.166,87.086,2.28113058]
[1646019303339,4.591,87.166,87.09,17.2266]
[1646019303540,53.45127139,87.167,87.091,2.87391458]
[1646019304340,53.45127139,87.167,87.092,6.0]
[1646019304539,53.45127139,87.167,87.101,10.18594938]
[1646019304743,53.45127139,87.167,87.102,6.0]
[1646019305044,4.59,87.199,87.102,6.0]
[1646019305242,24.1595,87.199,87.103,46.6193]
[1646019305441,24.1595,87.199,87.104,8.40082886]
[1646019305839,49.02099531,87.198,87.104,8.40082886]
[1646019306240,24.1595,87.199,87.111,2.93211975]
[1646019306440,16.9822,87.217,87.12,14.05]
[1646019306641,16.9822,87.217,87.122,2.44218912]
[1646019306840,16.9822,87.217,87.123,6.0]
[1646019307241,49.6838147,87.208,87.124,51.90056136]
[1646019307443,49.6838147,87.208,87.14,17.2164]
[1646019307644,49.6838147,87.208,87.141,10.07908857]
[1646019308743,49.6838147,87.208,87.142,6.0]
[1646019309143,49.6838147,87.208,87.141,10.07908857]
[1646019309344,49.6838147,87.208,87.142,6.0]
[1646019311057,49.6838147,87.208,87.141,10.07908857]
[1646019311256,113.7,87.207,87.122,2.63852074]
[1646019311456,141.29998921,87.207,87.123,6.0]
[1646019311656,141.29998921,87.207,87.122,2.63852074]
[1646019311858,113.7,87.205,87.122,2.63852074]
[1646019312057,4.589,87.204,87.123,6.0]
[1646019312256,4.589,87.204,87.124,49.03095656]
[1646019312457,4.589,87.204,87.125,3.05317628]
[1646019312860,113.7,87.202,87.125,3.05317628]
[1646019313059,113.7,87.2,87.124,49.03095656]
[1646019313258,113.7,87.198,87.124,49.03095656]
[1646019313459,4.589,87.197,87.124,49.03095656]
[1646019313860,113.7,87.196,87.124,49.03095656]
[1646019314160,113.7,87.193,87.124,49.03095656]
[1646019314360,4.589,87.192,87.124,49.03095656]
[1646019314561,4.589,87.192,87.121,23.9856]
[1646019314762,138.23440492,87.191,87.1,17.2242]
[1646019315061,1.50742774,87.188,87.075,2.64371746]
[1646019315261,4.59,87.187,87.077,2.3944965]
[1646019315463,4.59,87.187,87.078,54.80260966]
[1646019315464,142.82440492,87.187,87.078,54.80260966]
[1646019315661,113.7,87.169,87.08,17.2278]
[1646019315861,113.7,87.165,87.08,17.2278]
[1646019316061,113.7,87.163,87.08,17.2278]
[1646019316263,1.63341071,87.162,87.08,17.2278]
[1646019316460,4.591,87.161,87.08,17.2278]
[1646019317064,1.63341071,87.162,87.08,17.2278]
[1646019317260,4.591,87.161,87.08,17.2278]
[1646019317463,2.74678921,87.16,87.08,17.2278]
[1646019317664,4.591,87.159,87.08,17.2278]
[1646019318668,118.291,87.159,87.08,17.2278]
[1646019319065,121.03778921,87.159,87.078,54.80260966]
[1646019319267,145.57219413,87.159,87.077,2.3944965]
[1646019319867,1.71342405,87.158,87.076,49.2232]
[1646019320068,113.7,87.149,87.043,2.8523188]
[1646019320267,113.7,87.147,87.058,43.93793557]
[1646019320569,113.7,87.139,87.059,3.06140194]
[1646019320767,4.591,87.138,87.059,3.06140194]
[1646019320969,113.7,87.129,87.044,47.4886]
[1646019321170,1.62289291,87.128,87.044,47.4886]
[1646019321369,4.36968212,87.128,87.044,47.4886]
[1646019321569,118.293,87.127,87.028,2.44392111]
[1646019321769,1.39791617,87.126,87.028,2.44392111]
[1646019321968,119.73351312,87.125,87.029,51.2576572]
[1646019322171,113.7,87.119,87.029,51.2576572]
[1646019322470,113.7,87.109,87.029,51.2576572]
[1646019322669,113.7,87.107,87.029,51.2576572]
[1646019322870,113.7,87.105,87.029,51.2576572]
[1646019323071,113.7,87.103,87.029,51.2576572]
[1646019323268,113.7,87.101,87.029,51.2576572]
[1646019323470,113.7,87.099,87.029,51.2576572]
[1646019323671,113.7,87.097,87.029,51.2576572]
[1646019323969,113.7,87.093,87.029,51.2576572]
[1646019324170,4.594,87.092,87.029,51.2576572]
[1646019325575,4.594,87.092,87.001,3.00526368]
[1646019325772,130.945,87.09,87.002,6.0]
[1646019326176,2.74678921,87.089,87.001,3.00526368]
[1646019326371,4.595,87.088,87.001,3.00526368]
[1646019326573,4.595,87.088,87.002,51.98866616]
[1646019326772,2.74678921,87.087,87.003,2.85851245]
[1646019327374,4.595,87.086,87.003,2.85851245]
[1646019327672,113.7,87.085,87.003,2.85851245]
[1646019328274,118.295,87.085,87.003,2.85851245]
[1646019328472,1.59156534,87.084,87.002,51.98866616]
[1646019328872,2.74678921,87.083,87.002,51.98866616]
[1646019329075,4.595,87.082,87.002,51.98866616]
[1646019330873,113.7,87.079,86.983,2.63758436]
[1646019331074,113.7,87.077,86.983,2.63758436]
[1646019331274,113.7,87.075,86.983,2.63758436]
[1646019331474,113.7,87.073,86.983,2.63758436]
[1646019331775,113.7,87.057,86.983,2.63758436]
[1646019332074,4.596,87.056,86.983,2.63758436]
[1646019332274,2.74678921,87.056,86.983,2.63758436]
[1646019332575,37.04560004,87.058,86.983,2.63758436]
[1646019333280,4.596,87.057,86.983,2.63758436]
[1646019333476,116.44678921,87.057,86.983,2.63758436]
[1646019333675,2.74678921,87.056,86.983,2.63758436]
[1646019334978,4.596,87.055,86.983,2.63758436]
[1646019335378,7.34278921,87.055,86.983,2.63758436]
[1646019335576,2.74678921,87.055,86.983,2.63758436]
[1646019336276,4.596,87.054,86.983,2.63758436]
[1646019336576,113.7,87.057,86.983,2.63758436]
[1646019336777,2.74678921,87.053,86.983,2.63758436]
[1646019336977,17.253,87.05,86.983,2.63758436]
[1646019337977,116.44678921,87.049,86.983,2.63758436]
[1646019338380,2.74678921,87.048,86.983,2.63758436]
[1646019340780,4.596,87.047,86.983,2.63758436]
[1646019340980,2.74678921,87.048,86.983,2.63758436]
[1646019341179,2.74678921,87.046,86.983,2.63758436]
[1646019342281,2.74678921,87.046,86.982,23.2512]
[1646019342480,2.74678921,87.046,86.931,53.7303]
[1646019342481,113.7,87.039,86.931,53.7303]
[1646019342682,27.13440492,87.045,86.931,53.7303]
[1646019342683,113.7,87.029,86.932,25.88468375]
[1646019342881,113.7,87.019,86.933,2.32495794]
[1646019343082,113.7,87.017,86.933,2.32495794]
[1646019343383,29.0191,87.018,86.933,58.68201082]
[1646019343384,113.7,87.013,86.933,58.68201082]
[1646019343687,113.7,87.009,86.933,58.68201082]
[1646019344081,113.7,86.999,86.933,58.68201082]
[1646019344286,113.7,86.997,86.933,58.68201082]
[1646019344483,4.599,86.996,86.933,58.68201082]
[1646019344883,113.7,86.995,86.933,58.68201082]
[1646019345083,17.2648,86.99,86.933,58.68201082]
[1646019345483,2.74678921,86.994,86.934,2.46067188]
[1646019345686,37.04560004,86.998,86.934,11.36067188]
[1646019345885,37.04560004,86.998,86.934,15.95967188]
[1646019346084,37.04560004,86.998,86.934,11.36067188]
[1646019347886,54.66620004,86.998,86.934,11.36067188]
[1646019349688,17.6206,86.998,86.934,11.36067188]
[1646019349893,17.6206,86.998,86.94,17.2553]
[1646019350088,23.0997,87.012,86.941,3.10477106]
[1646019350287,23.0997,87.012,86.941,27.17147106]
[1646019350487,2.74678921,87.011,86.942,2.3096232]
[1646019350692,59.60354594,87.011,86.942,2.3096232]
[1646019351112,2.74678921,87.01,86.942,2.3096232]
[1646019352025,116.44678921,87.01,86.942,2.3096232]
[1646019352415,2.74678921,87.009,86.942,2.3096232]
[1646019355816,4.598,87.008,86.942,2.3096232]
[1646019356317,2.74678921,87.007,86.942,2.3096232]
[1646019356517,4.599,87.006,86.942,2.3096232]
[1646019356916,2.74678921,87.005,86.942,2.3096232]
[1646019359522,4.599,87.004,86.942,2.3096232]
[1646019359920,113.7,86.999,86.921,23.4128]
[1646019360121,4.599,86.998,86.922,3.09252855]
[1646019360322,113.7,86.997,86.922,3.09252855]
[1646019360521,4.599,86.996,86.922,3.09252855]
[1646019360722,113.7,86.995,86.922,3.09252855]
[1646019360923,4.599,86.994,86.922,3.09252855]
[1646019361122,113.7,86.989,86.922,3.09252855]
[1646019361323,4.6,86.988,86.922,3.09252855]
[1646019361726,2.74678921,86.987,86.911,2.43953294]
[1646019361923,2.74678921,86.987,86.91,22.6264]
[1646019361924,118.3,86.986,86.91,22.6264]
[1646019362323,2.74678921,86.985,86.91,22.6264]
[1646019362523,118.3,86.984,86.91,22.6264]
[1646019362926,113.7,86.979,86.91,22.6264]
[1646019363126,113.7,86.969,86.91,22.6264]